bitfinex/quotes_ETHUSD_20250106
["timestamp","ask_amount","ask_price","bid_price","bid_amount"]
[1736182392603,0.0075,3710.0,3708.2,1.5751]
[1736182392817,0.0075,3708.7,3708.2,1.5751]
[1736182393019,3.1806089,3709.5,3708.6,35.0]
[1736182393020,1.6308,3709.5,3708.6,35.0]
[1736182393233,1.6308,3709.5,3708.7,2.71757592]
[1736182393433,0.5575,3709.3,3708.7,2.71757592]
[1736182393709,3.0,3709.2,3708.7,2.71757592]
[1736182393902,0.53497453,3708.8,3708.2,1.5751]
[1736182394137,0.54247453,3708.8,3708.7,35.0]
[1736182394351,0.0075,3708.8,3708.7,35.0]
[1736182398866,1.6665,3710.3,3708.8,1.5832]
[1736182399156,1.6665,3710.9,3709.3,1.5832]
[1736182399359,0.52742615,3710.4,3709.7,1.5832]
[1736182399561,2.6942,3711.7,3710.4,1.6611]
[1736182399741,4.36606878,3711.8,3710.7,2.6949]
[1736182399908,1.67195878,3711.8,3710.8,2.72175379]
[1736182400109,1.67195878,3711.8,3710.9,1.6611]
[1736182400308,0.52634702,3711.8,3710.9,1.6611]
[1736182400524,3.0,3711.6,3710.9,1.6611]
[1736182400711,0.0075,3711.6,3710.9,1.6611]
[1736182401724,0.0075,3711.6,3708.8,1.5335]
[1736182401725,0.0075,3711.2,3708.8,1.5335]
[1736182401945,3.2526,3710.5,3709.5,0.02695307]
[1736182402115,0.0075,3710.5,3709.6,1.5335]
[1736182402755,0.5575,3710.3,3709.6,1.5335]
[1736182403055,3.5575,3709.8,3708.9,1.5659]
[1736182403279,0.0075,3709.5,3708.9,1.5659]
[1736182403431,3.0075,3709.5,3708.9,1.5659]
[1736182404234,3.0075,3709.7,3709.0,0.02695817]
[1736182404569,2.70319,3709.7,3708.9,1.5659]
[1736182405186,3.0,3710.0,3709.0,2.69611]
[1736182405321,2.69518,3710.4,3709.1,2.69605]
[1736182405662,0.0075,3710.1,3709.2,0.02695485]
[1736182406032,0.0075,3710.1,3709.2,2.72294485]
[1736182406434,2.69499,3710.6,3709.6,2.6957]
[1736182406766,2.69499,3710.6,3708.9,1.992132]
[1736182406767,2.69483,3710.8,3709.8,2.69556]
[1736182406917,0.0075,3710.7,3709.9,0.02695058]
[1736182407763,4.2324,3711.0,3709.9,0.02695058]
[1736182407966,3.1806089,3711.4,3709.9,0.02695058]
[1736182407967,2.69455,3711.2,3710.1,2.69527]
[1736182408125,0.0075,3711.1,3710.2,2.99442977]
[1736182408322,2.69401,3712.0,3710.3,4.35118]
[1736182408556,1.5508,3711.8,3710.4,0.02694787]
[1736182408738,2.69405,3711.9,3710.4,0.02694787]
[1736182408939,0.0075,3711.7,3710.5,2.69505]
[1736182409145,0.0075,3711.4,3710.6,0.435105]
[1736182411223,3.5575,3711.7,3710.6,3.130065]
[1736182411652,3.5575,3711.7,3710.7,2.69488]
[1736182412565,1.6571,3712.2,3711.1,2.69454]
[1736182412719,1.6571,3712.2,3711.0,1.6439]
[1736182412720,0.0075,3712.1,3711.0,1.6439]
[1736182412919,0.0075,3711.9,3711.0,4.33858]
[1736182413172,3.5575,3711.7,3711.0,1.6439]
[1736182413855,0.0075,3711.9,3711.2,3.1806089]
[1736182414057,2.69346,3712.7,3711.4,1.6439]
[1736182414278,4.32895,3712.9,3711.6,3.1806089]
[1736182414459,1.6356,3712.9,3711.7,0.0269361]
[1736182414662,1.6356,3712.9,3711.4,1.6439]
[1736182414862,1.6356,3712.9,3711.9,2.69398]
[1736182414863,2.16684064,3712.9,3711.9,2.69398]
[1736182415192,2.69312,3713.2,3711.4,1.6439]
[1736182415193,0.0075,3713.1,3712.0,2.69396]
[1736182415749,3.0075,3713.0,3712.0,2.69396]
[1736182415951,0.0075,3713.0,3712.1,0.02693366]
[1736182416291,0.0075,3713.0,3712.5,1.6508]
[1736182416799,0.22405568,3713.0,3712.2,1.6508]
[1736182416952,2.91732568,3713.0,3711.9,2.69403]
[1736182417150,2.91732568,3713.0,3711.6,1.5854]
[1736182417151,0.0075,3712.8,3711.6,1.5854]
[1736182417365,0.0075,3712.4,3711.6,1.5854]
[1736182417806,0.0075,3712.2,3711.6,1.5854]
[1736182418460,3.0,3713.3,3711.8,3.1806089]
[1736182418461,2.69302,3713.3,3711.8,3.1806089]
[1736182418648,1.6468,3712.7,3711.6,1.5854]
[1736182418849,3.0075,3712.6,3711.6,1.5854]
[1736182419300,0.5575,3712.6,3711.6,1.5854]
[1736182419452,0.0075,3712.6,3711.7,0.02693734]
[1736182419801,0.0075,3712.6,3711.9,2.69403]
[1736182420250,0.0075,3712.6,3711.6,1.5854]
[1736182420987,0.0075,3712.6,3711.8,2.69404]
[1736182421156,0.0075,3712.6,3711.6,1.5854]
[1736182421157,0.5575,3712.6,3711.6,1.5854]
[1736182421509,3.5575,3712.4,3711.3,2.69446]
[1736182422297,3.5575,3712.4,3711.2,1.634]
[1736182422298,3.0075,3712.2,3711.2,1.634]
[1736182422510,0.0075,3710.5,3710.3,0.5518368]
[1736182422687,0.0075,3710.9,3709.9,1.6526]
[1736182422913,0.0075,3710.9,3710.0,3.81585001]
[1736182423090,0.0075,3710.9,3710.1,0.02695002]
[1736182423292,2.69461,3711.2,3710.1,2.72228002]
[1736182423618,0.5575,3710.9,3710.1,0.02694973]
[1736182424942,2.69484,3710.8,3709.9,1.6526]
[1736182425232,3.4873037,3711.2,3709.1,1.5511]
[1736182425233,3.0,3710.6,3709.1,1.5511]
[1736182425386,3.0,3710.6,3709.6,2.69569]
[1736182425586,3.0,3710.6,3709.7,2.72257167]
[1736182426139,3.5575,3710.9,3709.8,1.5221]
[1736182426299,0.0075,3710.9,3709.9,2.72236962]
[1736182426506,3.0075,3710.9,3709.9,2.69542]
[1736182426693,3.0075,3710.9,3710.0,2.72234907]
[1736182427331,0.0075,3710.7,3710.0,0.02694907]
[1736182427534,0.0075,3710.4,3709.4,2.69584]
[1736182427694,0.0075,3710.4,3709.5,2.69571]
[1736182428097,0.0075,3710.4,3709.1,1.5221]
[1736182428917,0.0075,3710.4,3709.3,2.69585]
[1736182429098,0.0075,3710.2,3709.3,2.69585]
[1736182429432,3.0,3710.3,3709.3,2.69585]
[1736182429938,0.0075,3710.4,3709.4,2.69585]
[1736182430154,0.0075,3710.4,3709.4,3.117645]
[1736182430706,0.0075,3710.4,3709.5,2.69577]
[1736182431535,0.0075,3710.4,3709.4,0.421795]
[1736182431735,1.6078,3711.0,3709.5,1.67255188]
[1736182431907,1.6078,3711.0,3710.1,2.69533]
[1736182432104,0.0075,3710.9,3710.2,0.02694823]
[1736182432522,0.55549469,3710.9,3710.2,0.02694823]
[1736182432827,3.55549469,3710.9,3709.9,2.69547]
[1736182433394,3.55549469,3710.9,3710.0,0.02694847]
[1736182433637,3.55549469,3710.9,3710.0,2.72234847]
[1736182434236,0.54799469,3710.9,3710.1,2.69533]
[1736182434638,0.54799469,3710.9,3710.2,2.69526]
[1736182434798,0.0075,3711.3,3710.3,4.27846]
[1736182434993,0.0075,3711.3,3710.4,0.02694646]
[1736182436034,0.0075,3711.3,3710.4,2.72206646]
[1736182436340,3.0,3711.5,3710.5,2.69501]
[1736182436534,0.54870024,3711.4,3710.6,2.69494]
[1736182437321,0.54870024,3711.4,3710.4,0.43053665]
[1736182437521,0.54870024,3711.4,3710.4,3.12564665]
[1736182437722,3.0,3711.5,3710.6,2.69497]
[1736182438067,1.575,3711.7,3710.9,2.69476]
[1736182438263,1.6627,3712.1,3711.1,1.6161]
[1736182438432,4.35636,3712.5,3711.4,2.69439]
[1736182438642,0.0075,3712.4,3711.5,2.69431]
[1736182438943,0.0075,3712.4,3711.1,4.31067]
[1736182438944,0.54551827,3712.3,3711.1,1.6161]
[1736182439148,0.54551827,3712.3,3711.3,2.69445]
[1736182439333,0.54551827,3712.3,3711.4,2.69433]
[1736182440720,0.54551827,3712.3,3711.6,2.69424]
[1736182440918,1.6627,3712.5,3711.2,0.47967089]
[1736182441116,0.0075,3712.4,3711.3,2.69441]
[1736182441521,1.6627,3712.5,3711.8,2.69409]
[1736182441861,4.6556,3712.9,3711.9,2.72096496]
[1736182442034,4.6556,3712.9,3712.0,1.5719]
[1736182442369,0.54135443,3712.8,3712.0,1.5719]
[1736182442522,0.54135443,3712.8,3712.0,4.26585]
[1736182443067,0.53385443,3712.8,3712.1,0.02693359]
[1736182443286,1.5802,3713.4,3712.1,0.02693359]
[1736182443423,4.27272,3714.0,3712.8,2.69338]
[1736182443622,0.0075,3713.9,3712.9,0.02692808]
[1736182443850,3.0075,3713.7,3712.9,0.02692808]
[1736182444123,0.0075,3713.7,3712.9,0.02692808]
[1736182444324,1.5802,3714.0,3713.0,2.69323]
[1736182444550,1.5802,3714.0,3713.2,1.5224]
[1736182444756,0.0075,3713.9,3713.3,0.02692548]
[1736182446166,0.0075,3713.9,3713.2,1.5224]
[1736182446678,0.0075,3713.7,3712.8,1.5967]
[1736182446883,3.16728,3713.6,3712.4,4.2903]
[1736182447056,0.16728,3713.6,3712.4,1.5967]
[1736182447371,0.16728,3713.6,3712.7,2.69338]
[1736182447576,4.6578,3713.8,3712.8,0.02692796]
[1736182447725,1.6578,3713.8,3712.8,2.69333]
[1736182448280,1.6578,3713.8,3712.9,2.69331]
[1736182448754,1.6578,3713.8,3713.0,0.02692612]
[1736182448956,1.6578,3714.1,3713.3,1.5967]
[1736182449139,1.6578,3714.1,3713.4,2.71986454]
[1736182450243,1.6653,3714.5,3713.4,0.45858099]
[1736182450443,2.20953305,3715.0,3714.0,2.6925]
[1736182451467,0.0075,3714.9,3714.0,2.6925]
[1736182453132,0.0075,3714.9,3714.1,0.02691826]
[1736182453654,0.0075,3714.9,3714.0,2.6925]
[1736182453846,0.91317612,3714.9,3714.0,2.6925]
[1736182454044,0.0075,3714.9,3714.1,0.02691844]
[1736182454371,1.14799815,3715.2,3714.2,1.6591]
[1736182454934,1.14799815,3715.2,3714.3,0.0269155]
[1736182455131,4.6196,3716.1,3714.3,3.2075244]
[1736182455472,4.6196,3716.1,3715.0,4.35083]
[1736182455722,0.0075,3715.9,3715.0,4.35083]
[1736182456422,0.52567217,3715.9,3715.1,0.02691105]
[1736182456646,1.6196,3716.1,3715.1,0.02691105]
[1736182456788,1.6196,3716.1,3715.4,2.69149]
[1736182456986,1.6196,3716.1,3715.5,0.02690949]
[1736182457203,1.5674,3717.0,3715.5,0.29874944]
[1736182457402,4.25775,3717.0,3715.8,2.69117]
[1736182457620,0.0075,3716.9,3715.9,2.71802622]
[1736182457821,0.0075,3716.9,3716.1,2.69099]
[1736182458024,0.0075,3716.9,3716.0,1.56580383]
[1736182458025,0.0075,3716.9,3716.2,2.71780384]
[1736182458224,1.5674,3717.0,3716.5,2.69068]
[1736182458409,1.5674,3717.0,3716.6,0.02690222]
[1736182458614,1.5674,3717.0,3716.6,0.02690245]
[1736182458828,2.09614281,3717.4,3716.6,0.02690245]
[1736182459146,2.04600728,3717.4,3716.6,0.02690039]
[1736182459355,1.5674,3717.4,3716.6,0.02690039]
[1736182459558,1.5674,3717.4,3716.6,2.71752039]
[1736182460269,0.0075,3717.3,3716.0,1.5389]
[1736182460403,1.5879,3716.8,3715.6,1.6063]
[1736182460599,1.5804,3716.6,3715.1,1.6063]
[1736182460805,0.0075,3716.2,3714.9,2.69184]
[1736182460999,3.0,3715.9,3714.7,4.29828]
[1736182461451,0.0075,3715.6,3714.7,1.6063]
[1736182461650,2.12718899,3716.1,3714.8,0.02691353]
[1736182461867,2.12718899,3716.1,3714.7,4.7869089]
[1736182462173,0.0075,3715.9,3714.7,5.81336807]
[1736182462381,0.0075,3715.6,3714.6,1.11423312]
[1736182462528,0.0075,3715.4,3714.3,1.5684]
[1736182462722,2.699,3715.4,3714.3,1.5684]
[1736182462969,0.0075,3715.2,3713.9,4.7413089]
[1736182463172,0.0075,3715.2,3714.2,2.69234]
[1736182463476,1.6384,3715.5,3714.4,2.69219]
[1736182463772,1.6384,3715.5,3713.9,1.5607]
[1736182463773,0.5575,3715.4,3713.9,1.5607]
[1736182463989,0.0075,3714.9,3713.9,4.25328]
[1736182464126,0.21959,3715.3,3714.0,2.69251]
[1736182464443,0.0075,3715.2,3714.2,2.69234]
[1736182464645,0.0075,3715.2,3714.3,2.69229]
[1736182465026,0.0075,3715.2,3713.9,4.7413089]
[1736182465227,0.81716198,3715.2,3714.1,2.69242]
[1736182465472,0.81716198,3715.2,3714.2,2.69233]
[1736182465951,0.81716198,3715.2,3713.9,5.48470479]
[1736182466159,0.0075,3715.2,3713.9,5.48470479]
[1736182466326,0.0075,3715.2,3714.1,2.69243]
[1736182466678,0.0075,3715.2,3715.1,35.0]
[1736182468097,2.69141,3715.6,3715.1,35.0]
[1736182468098,1.5395,3715.9,3715.1,35.0]
[1736182468377,1.5395,3715.9,3715.2,0.02691333]
[1736182468378,0.0075,3715.8,3715.2,0.02691333]
[1736182468541,0.0075,3715.6,3714.7,7.4439389]
[1736182468743,0.0075,3715.6,3715.5,35.0]
[1736182469130,4.5395,3715.9,3715.5,35.0]
[1736182469334,0.0075,3715.8,3714.8,3.43630389]
[1736182469660,4.08776079,3715.8,3714.3,1.6244]
[1736182469973,1.5194,3715.2,3714.4,2.69221]
[1736182470180,0.0075,3714.9,3713.9,5.54840479]
[1736182470473,0.0075,3714.9,3714.4,2.69219]
[1736182470701,0.0075,3715.1,3714.5,0.02691844]
[1736182471002,0.0075,3715.1,3714.8,35.0]
[1736182471147,0.0075,3715.1,3714.2,2.69235]
[1736182471354,2.6915,3715.4,3714.2,2.69235]
[1736182471355,1.5151,3715.4,3714.3,3.20752736]
[1736182471547,1.5151,3715.4,3714.6,2.69204]
[1736182471899,1.5226,3715.4,3715.3,35.0]
[1736182472046,1.5151,3715.4,3715.3,35.0]
[1736182472250,1.6488,3715.9,3715.3,37.6915]
[1736182472449,1.6488,3715.9,3715.4,2.69148]
[1736182472849,1.6488,3715.9,3715.8,35.0]
[1736182474088,0.0075,3716.1,3715.8,35.0]
[1736182474291,0.0075,3716.1,3715.4,2.69147]
[1736182474534,0.0075,3716.1,3715.5,0.02690991]
[1736182474681,0.0075,3716.1,3716.0,35.0]
[1736182477435,1.5031,3716.2,3716.0,35.0]
[1736182477633,1.544,3716.7,3716.0,2.71757592]
[1736182477800,1.544,3716.7,3716.1,0.02690701]
[1736182477998,1.544,3716.7,3716.6,35.0]
[1736182478534,1.5515,3716.7,3716.6,35.0]
[1736182478735,2.0867262,3716.7,3716.6,35.0]
[1736182479034,1.544,3716.7,3716.6,35.0]
[1736182479721,1.6628,3717.1,3716.6,35.0]
[1736182479923,1.6628,3717.1,3715.7,1.655]
[1736182479924,0.53964244,3717.0,3716.3,2.69083]
[1736182480139,1.6628,3717.1,3716.4,2.7176641]
[1736182480347,1.6628,3717.1,3717.0,35.0]
[1736182480656,0.52528427,3717.5,3717.0,35.0]
[1736182480787,0.52528427,3717.5,3717.1,0.02689979]
[1736182481116,1.6485,3718.3,3717.4,2.69003]
[1736182481326,1.6485,3718.3,3718.1,35.0]
[1736182481689,0.18341,3718.6,3718.1,35.0]
[1736182481904,0.54832873,3718.5,3718.1,35.0]
[1736182482254,0.18341,3718.6,3717.8,2.68975]
[1736182482637,0.18341,3718.6,3718.5,35.0]
[1736182483668,7.01208625,3718.6,3718.5,35.0]
[1736182484943,3.0075,3718.2,3717.1,1.5626]
[1736182485464,2.68949,3718.2,3717.4,35.0]
[1736182485618,0.0075,3718.1,3717.4,35.0]
[1736182486357,0.0075,3718.4,3717.4,35.0]
[1736182486538,0.0075,3718.0,3717.4,35.0]
[1736182486869,0.0075,3718.0,3717.1,1.5626]
[1736182487374,0.0075,3718.0,3717.9,35.0]
[1736182487782,0.54355271,3718.0,3717.9,35.0]
[1736182488328,2.17405271,3718.0,3717.9,35.0]
[1736182489381,0.54355271,3718.0,3717.9,35.0]
[1736182490185,5.72766998,3718.0,3717.9,35.0]
[1736182490698,8.72766998,3718.0,3717.9,35.0]
[1736182493399,3.0075,3717.6,3716.6,1.6244]
[1736182493580,2.69741,3717.6,3716.7,0.02690205]
[1736182493788,0.0075,3717.4,3716.6,1.6244]
[1736182494006,0.0075,3717.4,3715.9,2.69109]
[1736182494007,0.0075,3717.0,3716.2,1.564]
[1736182494174,0.0075,3717.0,3716.9,35.0]
[1736182494504,5.69785,3717.0,3716.9,35.0]
[1736182494710,3.0075,3717.0,3716.9,35.0]
[1736182496564,5.69784,3717.0,3716.9,35.0]
[1736182497613,3.0075,3717.0,3716.9,35.0]
[1736182498315,3.0,3717.0,3716.9,35.0]
[1736182499096,3.0075,3717.0,3716.9,35.0]
[1736182499398,3.0,3717.0,3716.9,35.0]
[1736182499741,0.53089007,3717.2,3716.9,35.0]
[1736182500043,0.53089007,3717.2,3716.4,2.69077]
[1736182500245,0.53089007,3717.2,3716.5,0.45237964]
[1736182500392,4.28815,3717.7,3717.1,35.0]
[1736182500593,0.32330727,3718.0,3717.2,0.02690064]
[1736182500807,0.0075,3717.8,3717.0,1.564]
[1736182501168,0.0075,3717.5,3716.6,1.655]
[1736182501512,0.32330727,3718.0,3716.8,1.5357]
[1736182501715,1.6186,3718.5,3717.9,35.0]
[1736182502029,0.0075,3718.3,3717.9,35.0]
[1736182502336,0.0075,3718.3,3717.3,2.69012]
[1736182502539,0.0075,3718.3,3716.8,7.4067689]
[1736182502540,0.54738473,3718.2,3717.5,1.5024]
[1736182502744,3.0075,3717.8,3716.8,1.5024]
[1736182502908,0.0075,3717.7,3716.8,1.5024]
[1736182503105,2.69734,3717.7,3716.8,1.5024]
[1736182503360,2.69008,3717.4,3716.8,1.5024]
[1736182503521,0.0075,3717.3,3716.3,1.5029]
[1736182503858,0.0075,3717.0,3716.3,1.5029]
[1736182504066,2.69785,3717.0,3716.3,1.5029]
[1736182504363,0.5575,3717.2,3716.3,1.5029]
[1736182504572,2.69049,3716.8,3716.0,1.5865]
[1736182504984,0.0075,3716.9,3716.0,1.5865]
[1736182505122,0.0075,3716.9,3716.0,2.01427]
[1736182505326,0.52935032,3717.3,3716.1,0.02690515]
[1736182505572,0.52935032,3717.3,3716.7,1.5584]
[1736182505867,1.5803,3718.0,3716.8,3.20751003]
[1736182506069,1.5803,3718.0,3717.0,2.6903]
[1736182506218,0.0075,3717.9,3717.0,2.6903]
[1736182506667,0.0075,3717.9,3717.2,2.69018]
[1736182506870,3.0075,3718.1,3717.3,0.02689801]
[1736182507039,0.5575,3718.1,3717.3,0.02689801]
[1736182507239,3.5575,3718.1,3717.3,0.02689801]
[1736182507773,0.0075,3717.8,3717.0,0.74293089]
[1736182508089,0.0075,3717.4,3716.7,1.5584]
[1736182508226,3.0075,3717.4,3716.7,1.5584]
[1736182509567,1.6052,3717.8,3716.8,0.02690075]
[1736182509739,3.0,3717.6,3716.7,1.5584]
[1736182510729,0.0075,3717.5,3716.7,1.5584]
[1736182510930,0.5575,3717.7,3716.7,1.5584]
[1736182511276,0.0075,3717.3,3716.7,1.5584]
[1736182511970,2.69021,3717.2,3716.1,1.6549]
[1736182513342,2.69021,3717.2,3716.2,2.6909]
[1736182513539,2.69021,3717.2,3716.1,1.6549]
[1736182513735,0.0075,3716.9,3716.1,1.6549]
[1736182514252,0.0075,3716.9,3716.0,1.11423312]
[1736182514253,2.69063,3716.6,3716.0,1.11423312]
[1736182514454,1.6663,3717.0,3716.1,0.02690669]
[1736182514637,2.69028,3717.1,3716.1,0.02690669]
[1736182514833,3.0,3717.0,3716.2,1.6254]
[1736182515075,3.0,3717.0,3716.3,0.57266443]
[1736182515235,3.0,3717.0,3716.4,0.02690445]
[1736182515440,2.69013,3717.3,3716.4,0.02690445]
[1736182515641,2.69013,3717.3,3716.3,0.54575998]
[1736182515907,0.52567545,3717.6,3716.4,3.2075109]
[1736182516178,0.52567545,3717.6,3716.5,1.89622709]
[1736182516387,0.0075,3718.1,3716.5,1.89622709]
[1736182516744,1.5477,3718.2,3716.8,1.5209]
[1736182516938,3.0,3717.6,3716.8,1.5209]
[1736182517143,0.0075,3717.4,3716.5,1.89622709]
[1736182517460,2.69024,3717.2,3716.5,1.5209]
[1736182517658,2.69048,3716.9,3716.5,1.5209]
[1736182518165,4.557,3717.3,3716.0,1.11423312]
[1736182518341,0.0075,3716.6,3716.0,1.14114063]
[1736182518544,1.557,3717.3,3716.0,1.14114063]
[1736182518885,2.6905,3716.8,3716.0,1.11423312]
[1736182519383,0.0075,3716.7,3716.1,0.02690616]
[1736182519747,2.69044,3716.9,3716.3,0.06415223]
[1736182519748,0.0075,3716.8,3716.3,0.06415223]
[1736182520088,0.1557,3717.2,3716.3,0.06415223]
[1736182520089,2.69056,3716.7,3716.3,0.06415223]
[1736182520290,3.0075,3716.8,3716.3,0.06415223]
[1736182521249,0.1557,3717.2,3716.3,0.06415223]
[1736182521579,0.5270029,3716.8,3716.3,0.06415223]
[1736182521780,0.0075,3716.7,3716.3,0.06415223]
[1736182523386,0.0075,3716.5,3716.3,0.06415223]
[1736182523745,6.24827,3716.4,3716.3,0.06415223]
[1736182528987,0.5270029,3716.8,3716.3,0.06415223]
[1736182528988,2.0457029,3716.8,3716.3,0.06415223]
[1736182529221,0.5270029,3716.8,3716.3,0.06415223]
[1736182529707,0.0075,3716.7,3716.3,0.06415223]
[1736182529866,11.0820789,3716.4,3716.3,0.06415223]
[1736182530225,7.90147,3716.4,3716.3,0.06415223]
[1736182534094,3.24827,3716.4,3716.3,0.06415223]
[1736182536666,2.69077,3716.4,3716.3,0.06415223]
[1736182536853,12.0438969,3716.4,3716.3,2.23e-06]
[1736182537068,8.863288,3716.4,3716.3,2.23e-06]
[1736182539125,6.697788,3716.4,3716.3,2.23e-06]
[1736182539275,3.0,3716.4,3716.3,2.23e-06]
[1736182539769,0.5270029,3716.8,3716.3,2.23e-06]
[1736182539967,2.69027,3717.1,3716.3,2.23e-06]
[1736182540421,3.54825948,3717.0,3716.3,0.02690729]
[1736182541169,3.23860948,3717.0,3716.3,2.23e-06]
[1736182541972,1.5609,3718.0,3716.4,1.6374]
[1736182542246,2.68985,3717.7,3716.6,1.6374]
[1736182542540,0.54378939,3717.5,3716.6,4.32802]
[1736182542744,0.54378939,3717.5,3716.9,2.69035]
[1736182543036,3.0,3717.9,3716.5,2.69067]
[1736182543037,2.68967,3718.0,3717.0,2.71721878]
[1736182543330,5.46689982,3718.2,3717.1,4.34294]
[1736182543539,0.53107925,3717.7,3717.2,0.02689759]
[1736182544584,0.18341,3718.6,3717.3,1.5711]
[1736182544783,0.18341,3718.6,3717.0,3.45233078]
[1736182544784,0.18341,3718.6,3717.5,1.5711]
[1736182544990,0.54929702,3718.4,3717.6,0.02689561]
[1736182545179,0.54929702,3718.4,3717.6,0.18669517]
[1736182545529,0.54929702,3718.4,3717.6,0.15979956]
[1736182545823,0.54929702,3718.4,3717.5,4.26107]
[1736182546434,2.68942,3718.3,3717.5,1.5711]
[1736182546751,0.54929702,3718.4,3717.5,1.5711]
[1736182547231,3.0,3718.3,3717.5,1.5711]
[1736182547983,3.0,3718.3,3717.6,0.02689516]
[1736182548220,3.0,3718.3,3717.5,4.26107]
[1736182548420,3.0,3718.3,3717.6,0.02689466]
[1736182548626,3.0,3718.3,3717.8,1.5097]
[1736182548823,3.0,3718.3,3717.9,0.02689399]
[1736182549386,3.0,3718.3,3717.8,1.5097]
[1736182549832,3.0,3718.3,3717.9,0.02689399]
[1736182550550,0.54929702,3718.4,3717.9,0.02689399]
[1736182550722,0.54929702,3718.4,3717.9,3.1122984]
[1736182550936,0.54929702,3718.4,3718.0,4.27591]
[1736182551145,0.18341,3718.6,3718.1,0.02689177]
[1736182551452,0.18341,3718.6,3718.5,2.68925]
[1736182551663,0.18341,3718.6,3718.5,4.21635]
[1736182551813,0.18341,3718.6,3718.5,4.95873474]
[1736182553508,0.18341,3718.6,3718.5,1.5271]
[1736182554413,0.18341,3718.6,3717.8,1.6559]
[1736182555642,2.68928,3718.5,3717.8,1.6559]
[1736182555845,0.18341,3718.6,3717.8,1.6559]
[1736182556215,2.68936,3718.4,3717.8,1.6559]
[1736182556925,2.68951,3718.2,3717.2,2.69017]
[1736182557132,5.68955,3718.1,3717.1,1.5477]
[1736182557456,0.287277,3718.4,3717.1,4.23793]
[1736182557627,3.0,3718.2,3717.1,1.5477]
[1736182557828,3.0,3718.2,3717.3,1.6491]
[1736182558027,3.0,3718.2,3717.1,1.5477]
[1736182558225,2.68948,3718.2,3717.1,5.00699508]
[1736182558467,0.0075,3718.3,3717.1,2.31674508]
[1736182558789,0.54581316,3718.5,3717.7,1.5477]
[1736182558937,0.18341,3718.6,3718.5,2.68925]
[1736182559255,0.18341,3718.6,3718.5,4.26383842]
[1736182559411,0.18341,3718.6,3718.5,5.00828315]
[1736182559929,2.87259,3718.6,3717.4,1.6193]
[1736182560114,0.18341,3718.6,3717.4,1.6193]
[1736182560314,0.18341,3718.6,3717.2,3.1806089]
[1736182560572,0.18341,3718.6,3717.6,1.6193]
[1736182560853,0.18341,3718.6,3717.7,2.68976]
[1736182561441,0.18341,3718.6,3717.8,2.68975]
[1736182561813,0.18341,3718.6,3717.9,2.68967]
[1736182562247,0.18341,3718.6,3717.6,2.050242]
[1736182562472,0.18341,3718.6,3717.7,2.71671187]
[1736182562659,0.18341,3718.6,3717.8,0.47669539]
[1736182562962,0.18341,3718.6,3717.6,4.30919]
[1736182563139,3.18341,3718.6,3717.6,4.30919]
[1736182563554,5.87264,3718.6,3717.6,1.6193]
[1736182563722,3.18341,3718.6,3717.6,1.6193]
[1736182564925,2.68952,3718.2,3717.6,1.6193]
[1736182565196,3.0,3718.0,3717.6,1.6193]
[1736182565496,0.268952,3718.2,3716.8,3.1806089]
[1736182565497,3.268952,3718.2,3717.4,1.5047]
[1736182565972,0.268952,3718.2,3717.4,1.5047]
[1736182566287,3.0,3718.2,3717.4,1.5047]
[1736182566487,0.18341,3718.6,3717.6,2.68987]
[1736182567044,0.18341,3718.6,3717.7,0.02689211]
[1736182567241,0.18341,3718.6,3717.4,1.5047]
[1736182567478,0.576751,3718.6,3717.4,2.24223589]
[1736182567678,1.12027604,3718.6,3717.4,2.24223589]
[1736182567997,1.12027604,3718.6,3717.4,1.5047]
[1736182567998,2.68943,3718.3,3717.4,1.5047]
[1736182568627,1.12027604,3718.6,3717.4,1.5047]
[1736182568628,1.5903,3718.2,3717.4,1.5047]
[1736182568735,2.68984,3717.7,3717.1,1.5142]
[1736182568935,3.0,3718.0,3717.1,1.5142]
[1736182569135,2.68995,3717.6,3717.1,1.5142]
[1736182569571,1.5903,3718.2,3717.1,1.5142]
[1736182569789,2.68976,3717.8,3717.1,1.5142]
[1736182569972,2.68963,3718.0,3717.2,0.02689922]
[1736182570397,2.6897,3717.9,3717.1,1.5142]
[1736182570696,1.5903,3718.2,3717.1,1.5142]
[1736182570697,2.68977,3717.8,3717.1,1.5142]
[1736182570890,2.68985,3717.7,3716.6,2.69062]
[1736182571061,3.53379125,3717.9,3716.5,1.6521]
[1736182571256,3.53379125,3717.9,3716.8,2.69041]
[1736182571471,3.53379125,3717.9,3716.9,1.6222]
[1736182571678,3.22348125,3717.9,3717.0,0.431261]
[1736182572174,0.53379125,3717.9,3717.0,0.431261]
[1736182572800,3.22349125,3717.9,3717.0,0.431261]
[1736182573108,2.68977,3717.8,3716.9,1.6222]
[1736182574212,2.68987,3717.7,3716.9,1.6222]
[1736182575207,3.0,3717.6,3716.9,1.6222]
[1736182576935,2.68998,3717.5,3716.9,1.6222]
[1736182579698,2.69031,3717.1,3716.4,1.5346]
[1736182580151,3.0,3717.0,3716.4,1.5346]
[1736182580994,2.69034,3717.0,3716.4,1.5346]
[1736182582252,2.69047,3716.9,3716.4,1.5346]
[1736182582390,2.69059,3716.7,3716.4,1.5346]
[1736182582591,2.69052,3716.8,3716.3,2.23e-06]
[1736182582929,3.0,3716.9,3716.3,0.02690894]
[1736182583244,3.0,3716.9,3716.3,2.23e-06]
[1736182584338,0.0075,3717.2,3716.3,2.23e-06]
[1736182584646,2.69041,3716.9,3716.3,2.23e-06]
[1736182584842,2.69055,3716.8,3716.3,2.23e-06]
[1736182585143,2.69055,3716.7,3716.3,2.23e-06]
[1736182586246,2.69065,3716.6,3716.3,2.23e-06]
[1736182586546,0.425165,3716.5,3716.3,2.23e-06]